lending/lending_fUSD_20250114
["ID","MTS","AMOUNT","RATE_DAILY","PERIOD"]
[348898059,1736865047160,-987.15,9.999e-05,2]
[348898060,1736865047170,-500.0,9.999e-05,2]
[348898061,1736865047180,-500.0,9.999e-05,2]
[348898062,1736865047189,-2180.47,9.999e-05,2]
[348898063,1736865047198,-500.0,9.999e-05,2]
[348898064,1736865047207,-500.0,9.999e-05,2]
[348898065,1736865047218,-500.0,9.999e-05,2]
[348898066,1736865047227,-500.0,9.999e-05,2]
[348898067,1736865047237,-500.0,9.999e-05,2]
[348898068,1736865047246,-500.0,9.999e-05,2]
[348898069,1736865047256,-500.0,9.999e-05,2]
[348898070,1736865047266,-500.0,9.999e-05,2]
[348898071,1736865047275,-500.0,9.999e-05,2]
[348898072,1736865047286,-500.0,9.999e-05,2]
[348898073,1736865047296,-500.0,9.999e-05,2]
[348898074,1736865047306,-1427.83,9.999e-05,2]
[348898075,1736865047316,-500.0,9.999e-05,2]
[348898076,1736865047325,-500.0,9.999e-05,2]
[348898077,1736865047334,-500.0,9.999e-05,2]
[348898078,1736865047343,-500.0,9.999e-05,2]
[348898079,1736865047353,-555.2797078,9.999e-05,2]
[348898080,1736865047363,-500.0,9.999e-05,2]
[348898081,1736865047371,-500.0,9.999e-05,2]
[348898082,1736865047380,-500.0,9.999e-05,2]
[348898083,1736865047392,-500.0,9.999e-05,2]
[348898084,1736865047403,-500.0,9.999e-05,2]
[348898085,1736865047412,-500.0,9.999e-05,2]
[348898086,1736865047423,-434.40653801,9.999e-05,2]
[348898087,1736865047433,-500.0,9.999e-05,2]
[348898088,1736865047444,-151.0,9.999e-05,2]
[348898089,1736865047453,-500.0,9.999e-05,2]
[348898090,1736865047462,-500.0,9.999e-05,2]
[348898091,1736865047473,-500.0,9.999e-05,2]
[348898092,1736865047484,-500.0,9.999e-05,2]
[348898093,1736865047494,-500.0,9.999e-05,2]
[348898094,1736865047503,-500.0,9.999e-05,2]
[348898095,1736865047512,-2479.83,9.999e-05,2]
[348898096,1736865047521,-3361.89,9.999e-05,2]
[348898097,1736865047530,-172.28816532,9.999e-05,2]
[348898098,1736865047540,-500.0,9.999e-05,2]
[348898099,1736865047549,-2241.25433266,9.999e-05,2]
[348898100,1736865047558,-63943.94186144,9.999e-05,2]
[348898101,1736865047567,-226.91654452,0.0001,2]
[348898102,1736865047577,-1572567.07207943,0.0001,2]
[348898103,1736865047586,-2044873.18667345,0.0001,2]
[348898104,1736865047595,-1195636.15860296,0.0001,2]
[348898105,1736865047605,-1000.0,0.0001,2]
[348898106,1736865047615,-1000.0,0.0001,2]
[348898107,1736865047624,-1000.0,0.0001,2]
[348898108,1736865047634,-1000.0,0.0001,2]
[348898109,1736865047643,-1000.0,0.0001,2]
[348898110,1736865047652,-1000.0,0.0001,2]
[348898111,1736865047661,-1000.0,0.0001,2]
[348898112,1736865047672,-1000.0,0.0001,2]
[348898113,1736865047681,-1000.0,0.0001,2]
[348898114,1736865047690,-436.87224041,0.0001,2]
[348898115,1736865047700,-265.39404564,0.0001,2]
[348898116,1736865047709,-408974.72,0.0001,2]
[348898117,1736865047723,-151.0,0.0001,2]
[348898118,1736865047733,-2312.35820979,0.0001,2]
[348898119,1736865047742,-141004.0285697,0.0001,2]
[348898120,1736865047751,-151.0,0.0001,2]
[348898121,1736865047762,-4277.46394421,0.0001,4]
[348898122,1736865047771,-4567.8807053,0.0001,2]
[348898123,1736865047781,-1194.28592314,0.0001,2]
[348898124,1736865047792,-500.0,0.0001,2]
[348898125,1736865047801,-301.01061023,0.0001,2]
[348898126,1736865047810,-200.23500776,0.0001,2]
[348898127,1736865047820,-6412181.07644887,0.0001,2]
[348898128,1736865047829,-3000.0,0.0001,2]
[348898129,1736865047839,-5245293.56764345,0.0001,2]
[348898130,1736865047862,-1891.3595781,0.0001,2]
[348898131,1736865047873,-1159.59924623,0.0001,2]
[348898132,1736865047884,-1942.37721319,0.0001,2]
[348898133,1736865047896,-527.83680285,0.0001,2]
[348898134,1736865047909,-1215.03383588,0.0001,2]
[348898135,1736865047929,-296.9,0.0001,2]
[348898136,1736865047941,-2200.45424,0.0001,2]
[348898137,1736865047953,-3816.87510408,0.0001,2]
[348898138,1736865047986,-305.91068178,0.0001,2]
[348898139,1736865048547,-369.12270208,9.971e-05,2]
[348898140,1736865048559,-130.87729792,9.971e-05,2]
[348898141,1736865048568,-276236.87568406,0.0001,2]
[348898142,1736865048580,-1064116.42636949,0.0001,2]
[348898143,1736865048593,-1509.09021663,0.0001,2]
[348898144,1736865048606,-5960.70061963,0.0001,2]
[348898145,1736865048618,-1039.29938037,0.0001,2]
[348898146,1736865048643,-1938.6818734,0.0001,2]
[348898147,1736865048669,-554412.43948641,0.0001,2]
[348898148,1736865048690,-2509.33799919,0.0001,2]
[348898149,1736865049299,-500.0,9.971e-05,2]
[348898150,1736865049309,-3982.137,9.995e-05,2]
[348898151,1736865049319,-500.0,9.998e-05,2]
[348898152,1736865049329,-24039.24183932,0.0001,2]
[348898153,1736865049346,-2141.8815869,0.0001,2]
[348898154,1736865049391,-500.0,9.971e-05,2]
[348898155,1736865049401,-500.0,9.998e-05,2]
[348898156,1736865049411,-8649.64,0.0001,2]
[348898157,1736865114837,3161.0,0.00021,120]
[348898158,1736865336061,150.0,0.00023,120]
[348898159,1736865336406,150.0,0.00023,120]
[348898160,1736865336701,150.0,0.00023,120]
[348898161,1736865336996,150.0,0.00023,120]
[348898162,1736865337301,150.0,0.00023,120]
[348898163,1736865337598,150.0,0.00023,120]
[348898164,1736865337911,150.0,0.00023,120]
[348898165,1736865338358,150.0,0.00023,120]
[348898166,1736865338650,200.0,0.00023,120]
[348898167,1736865338943,200.0,0.00023,120]
[348898168,1736865339253,206.89769443,0.00023,120]
[348898170,1736865463755,150.0,0.00023,120]
[348898171,1736865638307,4951655.95133387,0.0002288,120]
[348898172,1736865650220,1984.21,8.219e-05,2]
[348898173,1736865671894,5057.51201,0.0001995,30]
[348898174,1736865677038,5054.72093,0.000189,30]
[348898178,1736865813276,453.9281114,0.00023,120]
[348898179,1736865866651,1019.02642217,0.00023,120]
[348898180,1736865904912,193.0,0.00023,120]
[348898184,1736866104149,1665.39637901,0.00023,120]
[348898193,1736866232237,-1982.31,8.786e-05,2]
[348898194,1736866232249,-381.34219364,8.902e-05,2]
[348898195,1736866232396,-618.65780636,8.902e-05,2]
[348898196,1736866232407,-164.4,8.931e-05,2]
[348898197,1736866232416,-164.4,8.946e-05,2]
[348898198,1736866232426,-250.0,8.958e-05,2]
[348898199,1736866232436,-164.4,8.961e-05,2]
[348898200,1736866232447,-274.42,8.969e-05,2]
[348898201,1736866232457,-680.03,8.973e-05,2]
[348898202,1736866232466,-164.4,8.976e-05,2]
[348898203,1736866232476,-257.47550816,8.976e-05,2]
[348898204,1736866232486,-250.0,8.987e-05,2]
[348898205,1736866232496,-243.82118953,9e-05,2]
[348898206,1736866232507,-168.07,9.257e-05,2]
[348898207,1736866232516,-257.47550815,9.473e-05,2]
[348898208,1736866232526,-150.0,9.589e-05,2]
[348898209,1736866232535,-3756.2609,9.67e-05,2]
[348898210,1736866232547,-300.0,9.779e-05,2]
[348898211,1736866232556,-542.87,9.78e-05,2]
[348898212,1736866232566,-233.808867,9.8e-05,2]
[348898213,1736866232577,-12758.775,9.87e-05,2]
[348898214,1736866232587,-150.0,9.883e-05,2]
[348898215,1736866232596,-212.0,9.884e-05,2]
[348898216,1736866232606,-212.0,9.884e-05,2]
[348898217,1736866232616,-212.0,9.884e-05,2]
[348898218,1736866232626,-212.0,9.884e-05,2]
[348898219,1736866232636,-212.0,9.884e-05,2]
[348898220,1736866232645,-212.0,9.884e-05,2]
[348898221,1736866232655,-212.0,9.884e-05,2]
[348898222,1736866232664,-212.0,9.884e-05,2]
[348898223,1736866232674,-212.0,9.884e-05,2]
[348898224,1736866232683,-212.0,9.884e-05,2]
[348898225,1736866232693,-212.0,9.884e-05,2]
[348898226,1736866232707,-212.0,9.884e-05,2]
[348898227,1736866232716,-212.0,9.884e-05,2]
[348898228,1736866232725,-212.0,9.884e-05,2]
[348898229,1736866232735,-326.0,9.886e-05,2]
[348898230,1736866232745,-326.0,9.886e-05,2]
[348898231,1736866232755,-326.0,9.886e-05,2]
[348898232,1736866232764,-326.0,9.886e-05,2]
[348898233,1736866232775,-326.0,9.886e-05,2]
[348898235,1736866232784,-326.0,9.886e-05,2]
[348898236,1736866232794,-326.0,9.886e-05,2]
[348898237,1736866232807,-326.0,9.886e-05,2]
[348898238,1736866232816,-326.0,9.886e-05,2]
[348898239,1736866232826,-326.0,9.886e-05,2]
[348898241,1736866232836,-326.0,9.886e-05,2]
[348898243,1736866232845,-326.0,9.886e-05,2]
[348898245,1736866232856,-326.0,9.886e-05,2]
[348898247,1736866232865,-326.0,9.886e-05,2]
[348898248,1736866232874,-212.0,9.895e-05,2]
[348898250,1736866232883,-212.0,9.895e-05,2]
[348898252,1736866232893,-212.0,9.895e-05,2]
[348898254,1736866232902,-212.0,9.895e-05,2]
[348898255,1736866232912,-212.0,9.895e-05,2]
[348898257,1736866232921,-212.0,9.895e-05,2]
[348898258,1736866232931,-212.0,9.895e-05,2]
[348898259,1736866232941,-212.0,9.895e-05,2]
[348898260,1736866232950,-212.0,9.895e-05,2]
[348898261,1736866232960,-212.0,9.895e-05,2]
[348898262,1736866232970,-212.0,9.895e-05,2]
[348898263,1736866232979,-212.0,9.895e-05,2]
[348898264,1736866232989,-212.0,9.895e-05,2]
[348898266,1736866232998,-326.0,9.898e-05,2]
[348898268,1736866233007,-326.0,9.898e-05,2]
[348898270,1736866233017,-326.0,9.898e-05,2]
[348898272,1736866233026,-326.0,9.898e-05,2]
[348898274,1736866233035,-326.0,9.898e-05,2]
[348898276,1736866233045,-326.0,9.898e-05,2]
[348898278,1736866233057,-326.0,9.898e-05,2]
[348898280,1736866233066,-326.0,9.898e-05,2]
[348898282,1736866233076,-326.0,9.898e-05,2]
[348898284,1736866233085,-326.0,9.898e-05,2]
[348898286,1736866233095,-326.0,9.898e-05,2]
[348898288,1736866233105,-326.0,9.898e-05,2]
[348898290,1736866233114,-326.0,9.898e-05,2]
[348898292,1736866233124,-300.0,9.9e-05,2]
[348898294,1736866233133,-1334.0,9.945e-05,2]
[348898296,1736866233143,-864.4,9.97e-05,2]
[348898297,1736866233154,-306.85958816,9.97e-05,2]
[348898299,1736866233164,-695.66,9.97e-05,2]
[348898301,1736866233173,-500.0,9.97e-05,2]
[348898303,1736866233183,-549.52,9.97e-05,2]
[348898305,1736866233193,-500.0,9.97e-05,2]
[348898307,1736866233202,-1134.54,9.97e-05,2]
[348898309,1736866233212,-847.46,9.97e-05,2]
[348898311,1736866233221,-846.3,9.97e-05,2]
[348898313,1736866233231,-1111.71,9.97e-05,2]
[348898315,1736866233241,-500.0,9.97e-05,2]
[348898317,1736866233254,-500.0,9.97e-05,2]
[348898319,1736866233264,-500.0,9.97e-05,2]
[348898322,1736866233275,-500.0,9.97e-05,2]
[348898324,1736866233286,-501.15049344,9.97e-05,2]
[348898326,1736866233297,-500.0,9.97e-05,2]
[348898328,1736866233310,-763.64,9.97e-05,2]
[348898330,1736866233321,-500.0,9.97e-05,2]
[348898332,1736866233333,-500.0,9.97e-05,2]
[348898334,1736866233347,-500.0,9.97e-05,2]
[348898336,1736866233363,-500.0,9.97e-05,2]
[348898337,1736866233373,-1157.0,9.97e-05,2]
[348898340,1736866233385,-1058.44,9.97e-05,2]
[348898342,1736866233401,-501.81340784,9.97e-05,2]
[348898344,1736866233411,-500.0,9.97e-05,2]
[348898346,1736866233422,-1088.19,9.97e-05,2]
[348898348,1736866233432,-498.69132494,9.97e-05,2]
[348898350,1736866233443,-500.0,9.97e-05,2]
[348898351,1736866233453,-500.0,9.97e-05,2]
[348898354,1736866233463,-500.0,9.97e-05,2]
[348898355,1736866233474,-500.0,9.97e-05,2]
[348898358,1736866233484,-500.0,9.97e-05,2]
[348898359,1736866233494,-500.0,9.97e-05,2]
[348898362,1736866233504,-500.0,9.97e-05,2]
[348898363,1736866233514,-500.0,9.97e-05,2]
[348898366,1736866233524,-500.0,9.97e-05,2]
[348898368,1736866233534,-500.0,9.97e-05,2]
[348898370,1736866233544,-500.0,9.97e-05,2]
[348898372,1736866233559,-1294.06,9.97e-05,2]
[348898374,1736866233569,-500.0,9.97e-05,2]
[348898376,1736866233580,-500.0,9.97e-05,2]
[348898377,1736866233589,-1227.16,9.97e-05,2]
[348898379,1736866233599,-564.44,9.97e-05,2]
[348898381,1736866233609,-500.0,9.97e-05,2]
[348898383,1736866233619,-500.0,9.97e-05,2]
[348898385,1736866233628,-984.21,9.97e-05,2]
[348898387,1736866233637,-1161.876636,9.97e-05,2]
[348898389,1736866233647,-500.0,9.97e-05,2]
[348898391,1736866233658,-1383.49,9.97e-05,2]
[348898393,1736866233667,-586.10276449,9.97e-05,2]
[348898395,1736866233677,-157.444713,9.97e-05,2]
[348898397,1736866233686,-500.0,9.97e-05,2]
[348898400,1736866233695,-906.06,9.97e-05,2]
[348898401,1736866233704,-500.0,9.97e-05,2]
[348898403,1736866233714,-500.0,9.97e-05,2]
[348898405,1736866233724,-500.0,9.97e-05,2]
[348898407,1736866233733,-500.0,9.97e-05,2]
[348898408,1736866233743,-500.0,9.97e-05,2]
[348898409,1736866233753,-500.0,9.97e-05,2]
[348898410,1736866233762,-1215.752109,9.97e-05,2]
[348898411,1736866233772,-1392.81,9.97e-05,2]
[348898412,1736866233782,-619.17,9.97e-05,2]
[348898413,1736866233791,-4932.63,9.97e-05,2]
[348898414,1736866233804,-500.0,9.97e-05,2]
[348898415,1736866233814,-500.0,9.97e-05,2]
[348898416,1736866233824,-500.0,9.97e-05,2]
[348898417,1736866233833,-500.0,9.97e-05,2]
[348898418,1736866233843,-500.0,9.97e-05,2]
[348898419,1736866233853,-500.0,9.97e-05,2]
[348898420,1736866233863,-500.0,9.97e-05,2]
[348898421,1736866233873,-1376.88,9.97e-05,2]
[348898422,1736866233883,-500.0,9.97e-05,2]
[348898423,1736866233893,-1190.96,9.97e-05,2]
[348898424,1736866233902,-500.0,9.97e-05,2]
[348898425,1736866233912,-502.83131452,9.97e-05,2]
[348898426,1736866233922,-449.33997015,9.97e-05,2]
[348898427,1736866233932,-500.0,9.97e-05,2]
[348898428,1736866233942,-883.06,9.97e-05,2]
[348898429,1736866233952,-500.0,9.97e-05,2]
[348898430,1736866233961,-500.0,9.97e-05,2]
[348898431,1736866233971,-500.0,9.97e-05,2]
[348898432,1736866233981,-500.0,9.97e-05,2]
[348898433,1736866233990,-726.31,9.97e-05,2]
[348898434,1736866234001,-1570.81,9.97e-05,2]
[348898435,1736866234010,-500.0,9.97e-05,2]
[348898436,1736866234020,-500.0,9.97e-05,2]
[348898437,1736866234029,-1123.07,9.97e-05,2]
[348898438,1736866234039,-500.0,9.97e-05,2]
[348898439,1736866234050,-500.0,9.97e-05,2]
[348898440,1736866234059,-500.0,9.97e-05,2]
[348898441,1736866234068,-651.81,9.97e-05,2]
[348898442,1736866234077,-529.35,9.97e-05,2]
[348898443,1736866234087,-500.0,9.97e-05,2]
[348898444,1736866234096,-600.82,9.97e-05,2]
[348898445,1736866234105,-954.05,9.97e-05,2]
[348898446,1736866234114,-503.87094546,9.97e-05,2]
[348898447,1736866234123,-500.0,9.97e-05,2]
[348898448,1736866234132,-500.0,9.97e-05,2]
[348898449,1736866234142,-500.0,9.97e-05,2]
[348898450,1736866234151,-779.15,9.97e-05,2]
[348898451,1736866234160,-1246.76,9.97e-05,2]
[348898452,1736866234169,-500.0,9.97e-05,2]
[348898453,1736866234179,-500.0,9.97e-05,2]
[348898454,1736866234188,-859.57,9.97e-05,2]
[348898455,1736866234197,-500.0,9.97e-05,2]
[348898456,1736866234206,-500.0,9.97e-05,2]
[348898457,1736866234215,-1130.49,9.97e-05,2]
[348898458,1736866234224,-500.0,9.97e-05,2]
[348898459,1736866234234,-3825.74,9.97e-05,2]
[348898460,1736866234245,-1798.06,9.97e-05,2]
[348898461,1736866234256,-504.4000336,9.97e-05,2]
[348898462,1736866234265,-500.0,9.97e-05,2]
[348898463,1736866234275,-1000.4410949,9.97e-05,2]
[348898464,1736866234284,-500.0,9.97e-05,2]
[348898465,1736866234294,-500.0,9.97e-05,2]
[348898466,1736866234305,-1689.56,9.97e-05,2]
[348898467,1736866234315,-881.23,9.97e-05,2]
[348898468,1736866234324,-500.0,9.97e-05,2]
[348898469,1736866234334,-500.0,9.97e-05,2]
[348898470,1736866234343,-500.0,9.97e-05,2]
[348898471,1736866234574,-500.0,9.97e-05,2]
[348898472,1736866234584,-500.0,9.97e-05,2]
[348898473,1736866234594,-3478.81,9.97e-05,2]
[348898474,1736866234603,-500.0,9.97e-05,2]
[348898475,1736866234612,-5142.65,9.97e-05,2]
[348898476,1736866234622,-10095.54,9.97e-05,2]
[348898477,1736866234631,-1027.76,9.97e-05,2]
[348898478,1736866234641,-500.0,9.97e-05,2]
[348898479,1736866234650,-2228.98,9.97e-05,2]
[348898480,1736866234659,-500.0,9.97e-05,2]
[348898481,1736866234669,-500.0,9.97e-05,2]
[348898482,1736866234678,-500.0,9.97e-05,2]
[348898483,1736866234687,-500.0,9.97e-05,2]
[348898484,1736866234697,-500.0,9.97e-05,2]
[348898485,1736866234707,-500.0,9.97e-05,2]
[348898486,1736866234717,-500.0,9.97e-05,2]
[348898487,1736866234727,-1202.85,9.97e-05,2]
[348898488,1736866234739,-500.0,9.97e-05,2]
[348898489,1736866234749,-547.4,9.97e-05,2]
[348898490,1736866234758,-500.0,9.97e-05,2]
[348898491,1736866234767,-500.0,9.97e-05,2]
[348898492,1736866234777,-500.0,9.97e-05,2]
[348898493,1736866234786,-418.54811756,9.97e-05,2]
[348898494,1736866234796,-500.0,9.97e-05,2]
[348898495,1736866234806,-500.0,9.97e-05,2]
[348898496,1736866234823,-1289.0,9.97e-05,2]
[348898497,1736866234834,-1664.83,9.97e-05,2]
[348898498,1736866234843,-500.0,9.97e-05,2]
[348898499,1736866234852,-500.0,9.97e-05,2]
[348898500,1736866234862,-500.0,9.97e-05,2]
[348898501,1736866234871,-1335.89,9.97e-05,2]
[348898502,1736866234881,-500.0,9.97e-05,2]
[348898503,1736866234891,-1184.69,9.97e-05,2]
[348898504,1736866234900,-4502.38,9.97e-05,2]
[348898505,1736866234910,-500.0,9.97e-05,2]
[348898506,1736866234919,-257.47550815,9.97e-05,2]
[348898507,1736866234928,-500.0,9.97e-05,2]
[348898508,1736866234938,-500.0,9.97e-05,2]
[348898509,1736866234947,-3192.07,9.97e-05,2]
[348898510,1736866234957,-500.0,9.97e-05,2]
[348898511,1736866234966,-500.0,9.97e-05,2]
[348898512,1736866234975,-2776.45,9.97e-05,2]
[348898513,1736866234984,-500.0,9.97e-05,2]
[348898514,1736866234993,-558.25067831,9.97e-05,2]
[348898515,1736866235002,-500.0,9.97e-05,2]
[348898516,1736866235011,-500.0,9.97e-05,2]
[348898517,1736866235020,-500.0,9.97e-05,2]
[348898518,1736866235029,-504.73258539,9.97e-05,2]
[348898519,1736866235039,-500.0,9.97e-05,2]
[348898520,1736866235048,-500.0,9.97e-05,2]
[348898521,1736866235058,-1572.41,9.97e-05,2]
[348898522,1736866235068,-2066.57,9.97e-05,2]
[348898523,1736866235077,-1230.74,9.97e-05,2]
[348898524,1736866235086,-576.73,9.97e-05,2]
[348898525,1736866235095,-500.0,9.97e-05,2]
[348898526,1736866235104,-1529.35,9.97e-05,2]
[348898527,1736866235114,-500.0,9.97e-05,2]
[348898528,1736866235123,-1139.76,9.97e-05,2]
[348898529,1736866235132,-2190.86,9.97e-05,2]
[348898530,1736866235141,-500.0,9.97e-05,2]
[348898531,1736866235151,-500.0,9.97e-05,2]
[348898532,1736866235160,-4192.28,9.97e-05,2]
[348898533,1736866235170,-500.0,9.97e-05,2]
[348898534,1736866235179,-500.0,9.97e-05,2]
[348898535,1736866235188,-500.0,9.97e-05,2]
[348898536,1736866235197,-500.0,9.97e-05,2]
[348898537,1736866235207,-500.0,9.97e-05,2]
[348898538,1736866235215,-1673.61,9.97e-05,2]
[348898539,1736866235225,-1588.69,9.97e-05,2]
[348898540,1736866235234,-656.7,9.97e-05,2]
[348898541,1736866235244,-2621.99,9.97e-05,2]
[348898542,1736866235257,-500.0,9.97e-05,2]
[348898543,1736866235267,-5638.19,9.97e-05,2]
[348898544,1736866235276,-500.0,9.97e-05,2]
[348898545,1736866235286,-500.0,9.97e-05,2]
[348898546,1736866235297,-500.0,9.97e-05,2]
[348898547,1736866235309,-500.0,9.97e-05,2]
[348898548,1736866235319,-4072.52,9.97e-05,2]
[348898549,1736866235329,-500.0,9.97e-05,2]
[348898550,1736866235339,-500.0,9.97e-05,2]
[348898551,1736866235348,-995.94,9.97e-05,2]
[348898552,1736866235358,-500.0,9.97e-05,2]
[348898553,1736866235367,-500.0,9.97e-05,2]
[348898554,1736866235377,-500.0,9.97e-05,2]
[348898555,1736866235386,-500.0,9.97e-05,2]
[348898556,1736866235395,-506.35400382,9.97e-05,2]
[348898557,1736866235404,-500.0,9.97e-05,2]
[348898558,1736866235414,-504.77354122,9.97e-05,2]
[348898559,1736866235423,-588.13052689,9.97e-05,2]
[348898560,1736866235433,-500.0,9.97e-05,2]
[348898561,1736866235442,-2589.92,9.97e-05,2]
[348898562,1736866235452,-500.0,9.97e-05,2]
[348898563,1736866235461,-3296.54,9.97e-05,2]
[348898564,1736866235470,-500.0,9.97e-05,2]
[348898565,1736866235479,-500.0,9.97e-05,2]
[348898566,1736866235489,-635.92,9.97e-05,2]
[348898567,1736866235498,-500.0,9.97e-05,2]
[348898568,1736866235507,-500.0,9.97e-05,2]
[348898569,1736866235516,-500.0,9.97e-05,2]
[348898570,1736866235525,-500.0,9.97e-05,2]
[348898571,1736866235534,-489.09954825,9.97e-05,2]
[348898572,1736866235544,-1711.27,9.97e-05,2]
[348898573,1736866235555,-500.0,9.97e-05,2]
[348898574,1736866235565,-500.0,9.97e-05,2]
[348898575,1736866235579,-500.0,9.97e-05,2]
[348898576,1736866235588,-3665.38,9.97e-05,2]
[348898577,1736866235598,-500.0,9.97e-05,2]
[348898578,1736866235607,-1102.63,9.97e-05,2]
[348898579,1736866235616,-500.0,9.97e-05,2]
[348898580,1736866235626,-513.58649727,9.97e-05,2]
[348898581,1736866235635,-500.0,9.97e-05,2]
[348898582,1736866235644,-500.0,9.97e-05,2]
[348898583,1736866235654,-500.0,9.97e-05,2]
[348898584,1736866235664,-1193.09,9.97e-05,2]
[348898585,1736866235673,-350.10968975,9.97e-05,2]
[348898586,1736866235683,-2112.9,9.97e-05,2]
[348898587,1736866235692,-500.0,9.97e-05,2]
[348898588,1736866235702,-11218.62565363,9.97e-05,2]
[348898589,1736866235711,-9591.59127922,9.971e-05,2]
[348898590,1736866235722,-1000.44109487,9.971e-05,2]
[348898591,1736866235732,-1504.14824137,9.971e-05,2]
[348898592,1736866235741,-1234.01306883,9.971e-05,2]
[348898593,1736866235751,-599.18615038,9.971e-05,2]
[348898594,1736866235760,-500.0,9.971e-05,2]
[348898595,1736866235770,-500.0,9.971e-05,2]
[348898596,1736866235779,-500.0,9.971e-05,2]
[348898597,1736866235788,-500.0,9.971e-05,2]
[348898598,1736866235798,-977.71,9.971e-05,2]
[348898599,1736866235810,-500.0,9.971e-05,2]
[348898600,1736866235819,-500.0,9.971e-05,2]
[348898601,1736866235829,-500.0,9.971e-05,2]
[348898602,1736866235839,-500.0,9.971e-05,2]
[348898603,1736866235848,-506.47946439,9.971e-05,2]
[348898604,1736866235857,-500.0,9.971e-05,2]
[348898605,1736866235867,-500.0,9.971e-05,2]
[348898606,1736866235876,-500.0,9.971e-05,2]
[348898607,1736866235886,-500.0,9.971e-05,2]
[348898608,1736866235895,-500.0,9.971e-05,2]
[348898609,1736866235904,-500.0,9.971e-05,2]
[348898610,1736866235914,-500.0,9.971e-05,2]
[348898611,1736866235923,-500.0,9.971e-05,2]
[348898612,1736866235933,-500.90308069,9.971e-05,2]
[348898613,1736866235942,-500.0,9.971e-05,2]
[348898614,1736866235952,-507.40402042,9.971e-05,2]
[348898615,1736866235961,-500.0,9.971e-05,2]
[348898616,1736866235970,-500.0,9.971e-05,2]
[348898617,1736866235980,-500.0,9.971e-05,2]
[348898618,1736866235989,-500.0,9.971e-05,2]
[348898619,1736866235999,-500.0,9.971e-05,2]
[348898620,1736866236009,-500.0,9.971e-05,2]
[348898621,1736866236018,-500.0,9.971e-05,2]
[348898622,1736866236028,-500.0,9.971e-05,2]
[348898623,1736866236037,-529.1005227,9.971e-05,2]
[348898624,1736866236046,-505.43514217,9.971e-05,2]
[348898625,1736866236057,-502.589287,9.971e-05,2]
[348898626,1736866236067,-500.0,9.971e-05,2]
[348898627,1736866236076,-500.0,9.971e-05,2]
[348898628,1736866236085,-500.0,9.971e-05,2]
[348898629,1736866236095,-500.0,9.971e-05,2]
[348898630,1736866236104,-589.2851405,9.971e-05,2]
[348898631,1736866236113,-500.0,9.971e-05,2]
[348898632,1736866236123,-500.0,9.971e-05,2]
[348898633,1736866236132,-500.0,9.971e-05,2]
[348898634,1736866236141,-500.0,9.971e-05,2]
[348898635,1736866236151,-500.0,9.971e-05,2]
[348898636,1736866236159,-500.0,9.971e-05,2]
[348898637,1736866236169,-509.80234045,9.971e-05,2]
[348898638,1736866236178,-500.0,9.971e-05,2]
[348898639,1736866236188,-500.0,9.971e-05,2]
[348898640,1736866236197,-500.0,9.971e-05,2]
[348898641,1736866236207,-500.0,9.971e-05,2]
[348898642,1736866236216,-500.0,9.971e-05,2]
[348898643,1736866236225,-500.0,9.971e-05,2]
[348898644,1736866236235,-500.0,9.971e-05,2]
[348898645,1736866236246,-500.0,9.971e-05,2]
[348898646,1736866236257,-500.0,9.971e-05,2]
[348898647,1736866236266,-500.0,9.971e-05,2]
[348898648,1736866236275,-500.0,9.971e-05,2]
[348898649,1736866236285,-500.0,9.971e-05,2]
[348898650,1736866236294,-500.0,9.971e-05,2]
[348898651,1736866236304,-500.0,9.971e-05,2]
[348898652,1736866236313,-500.0,9.971e-05,2]
[348898653,1736866236323,-500.0,9.971e-05,2]